fUST/lending_fUST_20240917
["ID","MTS","AMOUNT","RATE_DAILY","PERIOD"]
[338394240,1726581737082,500.0,0.00025,120]
[338394241,1726581737368,675.47,0.00025,120]
[338394242,1726581738440,500.0,0.00025,120]
[338394243,1726581738809,500.0,0.00025,120]
[338394244,1726581739790,500.0,0.00025,120]
[338394245,1726581739891,500.0,0.00025,120]
[338394246,1726581742223,1157.46,0.00025,120]
[338394247,1726581742390,1795.44,0.00025,120]
[338394248,1726581743366,500.0,0.00025,120]
[338394249,1726581743602,1065.55,0.00025,120]
[338394250,1726581743669,564.53331417,0.00025,120]
[338394251,1726581744597,500.0,0.00025,120]
[338394252,1726581745981,500.0,0.00025,120]
[338394253,1726581746103,503.23295675,0.00025,120]
[338394254,1726581746816,500.0,0.00025,120]
[338394255,1726581747422,500.0,0.00025,120]
[338394256,1726581747558,1720.28,0.00025,120]
[338394257,1726581747708,500.0,0.00025,120]
[338394258,1726581748434,2057.37,0.00025,120]
[338394259,1726581748707,2057.37,0.00025,120]
[338394260,1726581749032,2057.37,0.00025,120]
[338394261,1726581749233,502.8917268,0.00025,120]
[338394262,1726581749299,2057.37,0.00025,120]
[338394263,1726581749554,2057.37,0.00025,120]
[338394264,1726581749687,500.0,0.00025,120]
[338394265,1726581749839,2057.37,0.00025,120]
[338394266,1726581750121,2057.37,0.00025,120]
[338394267,1726581750183,500.0,0.00025,120]
[338394268,1726581750394,2057.37,0.00025,120]
[338394269,1726581751390,2057.37,0.00025,120]
[338394270,1726581751457,500.0,0.00025,120]
[338394271,1726581751513,2057.37,0.00025,120]
[338394272,1726581751633,2057.37,0.00025,120]
[338394273,1726581751801,2057.37,0.00025,120]
[338394274,1726581751855,1007.11,0.00025,120]
[338394275,1726581752006,2057.37,0.00025,120]
[338394276,1726581752113,500.0,0.00025,120]
[338394277,1726581752170,2057.37,0.00025,120]
[338394278,1726581752330,1329.14,0.00025,120]
[338394279,1726581752393,2057.37,0.00025,120]
[338394280,1726581752662,2057.37,0.00025,120]
[338394281,1726581752915,2057.37,0.00025,120]
[338394282,1726581752971,500.0,0.00025,120]
[338394283,1726581753028,1050.69,0.00025,120]
[338394284,1726581753210,500.0,0.00025,120]
[338394285,1726581753267,2057.37,0.00025,120]
[338394286,1726581753339,506.25598377,0.00025,120]
[338394287,1726581753528,2057.37,0.00025,120]
[338394288,1726581753821,2057.37,0.00025,120]
[338394289,1726581754084,2057.37,0.00025,120]
[338394290,1726581754358,500.0,0.00025,120]
[338394291,1726581754411,2057.37,0.00025,120]
[338394292,1726581754639,2057.37,0.00025,120]
[338394293,1726581754922,2057.50768433,0.00025,120]
[338394294,1726581756490,654.86,0.00025,120]
[338394295,1726581756655,500.0,0.00025,120]
[338394296,1726581756721,500.0,0.00025,120]
[338394297,1726581756779,556.384927,0.00025,120]
[338394298,1726581757206,500.0,0.00025,120]
[338394299,1726581757776,500.0,0.00025,120]
[338394300,1726581758290,1378.94,0.00025,120]
[338394301,1726581758594,1378.94,0.00025,120]
[338394302,1726581758967,500.48937892,0.00025,120]
[338394303,1726581759032,1378.94,0.00025,120]
[338394304,1726581759125,517.5,0.00025,120]
[338394305,1726581759175,1378.94,0.00025,120]
[338394306,1726581759898,1378.94,0.00025,120]
[338394307,1726581759987,852.9,0.00025,120]
[338394308,1726581760163,1378.94,0.00025,120]
[338394309,1726581760426,1378.94,0.00025,120]
[338394310,1726581760703,1378.94,0.00025,120]
[338394311,1726581760959,1378.94,0.00025,120]
[338394312,1726581761243,1378.94,0.00025,120]
[338394313,1726581761783,1378.94,0.00025,120]
[338394314,1726581761867,1378.94,0.00025,120]
[338394315,1726581762043,1378.94,0.00025,120]
[338394316,1726581762356,1378.94,0.00025,120]
[338394317,1726581762408,500.0,0.00025,120]
[338394318,1726581762659,1378.94,0.00025,120]
[338394319,1726581762940,1378.94,0.00025,120]
[338394320,1726581763227,1378.94,0.00025,120]
[338394321,1726581763502,1378.94,0.00025,120]
[338394322,1726581763775,1378.94,0.00025,120]
[338394323,1726581763955,500.0,0.00025,120]
[338394324,1726581764064,1378.94,0.00025,120]
[338394325,1726581764336,1378.94,0.00025,120]
[338394326,1726581764616,1378.94,0.00025,120]
[338394327,1726581764883,1378.94,0.00025,120]
[338394328,1726581765152,1379.14287099,0.00025,120]
[338394329,1726581765611,1134.29,0.00025,120]
[338394330,1726581766076,500.0,0.00025,120]
[338394331,1726581766190,1589.38,0.00025,120]
[338394332,1726581766874,1552.57,0.00025,120]
[338394333,1726581767133,500.0,0.00025,120]
[338394335,1726581767473,1540.21,0.00025,120]
[338394336,1726581768399,1135.85,0.00025,120]
[338394337,1726581768472,3820.25,0.00025,120]
[338394338,1726581768538,500.0,0.00025,120]
[338394339,1726581768872,2355.5002249,0.00024,60]
[338394340,1726581770332,500.0,0.00025,120]
[338394341,1726581771500,500.0,0.00025,120]
[338394342,1726581773456,500.0,0.00025,120]
[338394343,1726581774641,728.77,0.00025,120]
[338394344,1726581774795,500.0,0.00025,120]
[338394345,1726581775493,500.0,0.00025,120]
[338394346,1726581776288,500.0,0.00025,120]
[338394347,1726581777420,3626.63,0.00025,120]
[338394348,1726581778173,641.15,0.00025,120]
[338394349,1726581779720,500.0,0.00025,120]
[338394350,1726581779831,500.0,0.00025,120]
[338394351,1726581780919,500.0,0.00025,120]
[338394352,1726581783334,500.0,0.00025,120]
[338394353,1726581784009,273.12607712,0.00025,120]
[338394354,1726581784446,500.0,0.00025,120]
[338394355,1726581784537,189.24705816,0.00025,120]
[338394356,1726581784835,502.4533694,0.00025,120]
[338394357,1726581785810,500.0,0.00025,120]
[338394358,1726581785908,1535.06,0.00025,120]
[338394360,1726581786036,584.61,0.00025,120]
[338394361,1726581786372,500.0,0.00025,120]
[338394362,1726581786580,600.95927513,0.00025,120]
[338394363,1726581786681,515.41,0.00025,120]
[338394364,1726581787390,672.53,0.00025,120]
[338394365,1726581788570,500.0,0.00025,120]
[338394366,1726581788858,500.0,0.00025,120]
[338394367,1726581789462,6867.8,0.00025,120]
[338394368,1726581790136,500.0,0.00025,120]
[338394369,1726581790507,1717.42,0.00025,120]
[338394370,1726581790626,12011.02,0.00025,120]
[338394371,1726581791702,774.21,0.00025,120]
[338394372,1726581791811,500.0,0.00025,120]
[338394373,1726581792286,500.0,0.00025,120]
[338394374,1726581793203,528.48,0.00025,120]
[338394375,1726581796662,500.0,0.00025,120]
[338394376,1726581797555,921.98,0.00025,120]
[338394377,1726581798918,500.0,0.00025,120]
[338394378,1726581799260,2163.81,0.00025,120]
[338394379,1726581799582,2163.81,0.00025,120]
[338394380,1726581799692,748.16,0.00025,120]
[338394381,1726581799852,2562.97,0.00025,120]
[338394382,1726581799905,2163.81,0.00025,120]
[338394383,1726581800084,500.0,0.00025,120]
[338394384,1726581800166,2163.81,0.00025,120]
[338394385,1726581800214,500.0,0.00025,120]
[338394387,1726581800504,2163.81,0.00025,120]
[338394388,1726581800867,2163.81,0.00025,120]
[338394389,1726581801145,2163.81,0.00025,120]
[338394390,1726581801408,2163.81,0.00025,120]
[338394391,1726581801659,9658.55,0.00025,120]
[338394392,1726581802078,2163.81,0.00025,120]
[338394393,1726581802315,2529.02875445,0.00025,120]
[338394394,1726581802620,2163.81,0.00025,120]
[338394395,1726581802717,2163.81,0.00025,120]
[338394396,1726581802856,2163.81,0.00025,120]
[338394397,1726581802945,500.0,0.00025,120]
[338394398,1726581803674,2163.81,0.00025,120]
[338394399,1726581803744,500.0,0.00025,120]
[338394400,1726581803799,2163.81,0.00025,120]
[338394401,1726581803898,2163.81,0.00025,120]
[338394402,1726581804089,2163.81,0.00025,120]
[338394403,1726581804367,2163.81,0.00025,120]
[338394404,1726581804450,2789.82,0.00025,120]
[338394405,1726581804662,2163.81,0.00025,120]
[338394406,1726581805280,2163.81,0.00025,120]
[338394407,1726581805569,2163.81,0.00025,120]
[338394408,1726581805828,2163.81,0.00025,120]
[338394409,1726581806102,2163.81,0.00025,120]
[338394410,1726581806290,500.0,0.00025,120]
[338394411,1726581806561,2163.81,0.00025,120]
[338394412,1726581806846,2163.82248136,0.00025,120]
[338394413,1726581807007,803.71,0.00025,120]
[338394414,1726581807787,3412.31,0.00025,120]
[338394415,1726581808200,500.73140609,0.00025,120]
[338394416,1726581808833,1429.15,0.00025,120]
[338394417,1726581809824,500.0,0.00025,120]
[338394418,1726581809983,685.99,0.00025,120]
[338394419,1726581810275,500.0,0.00025,120]
[338394420,1726581811138,500.0,0.00025,120]
[338394421,1726581811208,500.0,0.00025,120]
[338394422,1726581811708,163.61183862,0.00025,120]
[338394423,1726581812362,224.21238505,0.00025,120]
[338394424,1726581812768,500.54541962,0.00025,120]
[338394425,1726581813428,500.0,0.00025,120]
[338394426,1726581814063,500.0,0.00025,120]
[338394427,1726581814122,500.0,0.00025,120]
[338394428,1726581814184,500.0,0.00025,120]
[338394429,1726581814242,500.0,0.00025,120]
[338394430,1726581814336,500.0,0.00025,120]
[338394431,1726581815334,280.33663115,0.00025,120]
[338394432,1726581815397,2113.3,0.00025,120]
[338394433,1726581816702,500.0,0.00025,120]
[338394434,1726581817508,500.0,0.00025,120]
[338394435,1726581817588,1123.58,0.00025,120]
[338394436,1726581817659,250.0,0.00025,120]
[338394437,1726581818004,409.9826222,0.00025,120]
[338394438,1726581818609,500.0,0.00025,120]
[338394439,1726581818746,500.0,0.00025,120]
[338394440,1726581819847,514.0,0.00025,120]
[338394441,1726581820058,1472.67,0.00025,120]
[338394442,1726581820604,2615.6,0.00025,120]
[338394443,1726581821315,500.0,0.00025,120]
[338394445,1726581822117,522.74930928,0.00025,120]
[338394446,1726581822568,500.0,0.00025,120]
[338394447,1726581822865,3090.51,0.00025,120]
[338394448,1726581823418,502.02459352,0.00025,120]
[338394449,1726581823573,500.0,0.00025,120]
[338394450,1726581825721,500.0,0.00025,120]
[338394451,1726581826532,646.17808849,0.00025,120]
[338394452,1726581828038,506.89752138,0.00025,120]
[338394453,1726581828937,2762.1,0.00025,120]
[338394454,1726581829419,501.2,0.00025,120]
[338394455,1726581830177,500.0,0.00025,120]
[338394456,1726581830413,500.0,0.00025,120]
[338394457,1726581830698,500.0,0.00025,120]
[338394458,1726581833100,500.0,0.00025,120]
[338394459,1726581833491,500.0,0.00025,120]
[338394460,1726581835133,2656.34,0.00025,120]
[338394461,1726581836173,500.0,0.00025,120]
[338394462,1726581836339,500.0,0.00025,120]
[338394463,1726581836987,500.0,0.00025,120]
[338394464,1726581838169,693.13,0.00025,120]
[338394465,1726581838390,2407.48,0.00025,120]
[338394466,1726581838451,980.15,0.00025,120]
[338394467,1726581838775,500.0,0.00025,120]
[338394468,1726581838913,500.0,0.00025,120]
[338394469,1726581839217,500.0,0.00025,120]
[338394470,1726581839630,605.97,0.00025,120]
[338394471,1726581840417,500.0,0.00025,120]
[338394472,1726581840594,500.0,0.00025,120]
[338394473,1726581841614,500.0,0.00025,120]
[338394474,1726581842059,2557.83,0.00025,120]
[338394475,1726581843651,500.0,0.00025,120]
[338394476,1726581843823,500.0,0.00025,120]
[338394477,1726581845547,500.0,0.00025,120]
[338394478,1726581846073,2789.5,0.00025,120]
[338394479,1726581846177,665.6,0.00025,120]
[338394480,1726581846260,2716.61,0.00025,120]
[338394481,1726581846310,500.0,0.00025,120]
[338394482,1726581847705,500.0,0.00025,120]
[338394483,1726581848367,500.0,0.00025,120]
[338394484,1726581848423,565.75,0.00025,120]
[338394485,1726581848507,918.53,0.00025,120]
[338394486,1726581848637,1852.06,0.00025,120]
[338394487,1726581850549,501.38120142,0.00025,120]
[338394488,1726581850644,500.0,0.00025,120]
[338394489,1726581851671,2813.34,0.00025,120]
[338394490,1726581851729,2886.67,0.00025,120]
[338394491,1726581852576,612.28074698,0.00025,120]
[338394492,1726581853128,500.0,0.00025,120]
[338394493,1726581854975,180.70082576,0.00025,120]
[338394495,1726581855141,500.0,0.00025,120]
[338394496,1726581855332,1835.88,0.00025,120]
[338394497,1726581855406,556.06,0.00025,120]
[338394498,1726581856376,500.0,0.00025,120]
[338394499,1726581857361,501.27083728,0.00025,120]
[338394500,1726581857565,413.17172659,0.00025,120]
[338394501,1726581857696,639.84,0.00025,120]
[338394502,1726581857983,500.0,0.00025,120]
[338394503,1726581858373,1117.53,0.00025,120]
[338394504,1726581859221,3123.62,0.00025,120]
[338394505,1726581859945,500.0,0.00025,120]
[338394506,1726581859995,500.0,0.00025,120]
[338394508,1726581862409,1034.13,0.00025,120]
[338394510,1726581862481,606.75,0.00025,120]
[338394511,1726581862809,1630.66,0.00025,120]
[338394512,1726581864273,502.63285672,0.00025,120]
[338394513,1726581866798,500.0,0.00025,120]
[338394514,1726581866865,500.0,0.00025,120]
[338394515,1726581868436,515.83,0.00025,120]
[338394516,1726581868493,500.0,0.00025,120]
[338394517,1726581868918,1093.32,0.00025,120]
[338394518,1726581870034,980.52,0.00025,120]
[338394519,1726581870140,2702.58,0.00025,120]
[338394520,1726581870742,2488.08,0.00025,120]
[338394521,1726581871815,1262.8,0.00025,120]
[338394522,1726581872197,502.96243821,0.00025,120]
[338394523,1726581873261,651.84,0.00025,120]
[338394524,1726581873886,500.0,0.00025,120]
[338394525,1726581874202,500.0,0.00025,120]
[338394526,1726581874353,500.0,0.00025,120]
[338394527,1726581874653,660.55,0.00025,120]
[338394528,1726581875143,921.07,0.00025,120]
[338394529,1726581875526,911.45,0.00025,120]
[338394530,1726581875884,11191.81,0.00025,120]
[338394531,1726581877600,500.93730999,0.00025,120]
[338394532,1726581878693,1061.78,0.00025,120]
[338394533,1726581880962,850.99,0.00025,120]
[338394534,1726581881391,577.33,0.00025,120]
[338394535,1726581881996,656.04,0.00025,120]
[338394536,1726581882118,500.0,0.00025,120]
[338394537,1726581882902,500.0,0.00025,120]
[338394538,1726581884666,500.0,0.00025,120]
[338394539,1726581886452,500.0,0.00025,120]
[338394540,1726581886590,2823.72,0.00025,120]
[338394541,1726581888119,500.0,0.00025,120]
[338394542,1726581888632,1108.7,0.00025,120]
[338394543,1726581888689,500.0,0.00025,120]
[338394544,1726581889040,500.0,0.00025,120]
[338394545,1726581889174,500.0,0.00025,120]
[338394546,1726581889637,500.0,0.00025,120]
[338394547,1726581890088,500.0,0.00025,120]
[338394548,1726581890321,2107.01,0.00025,120]
[338394549,1726581891089,500.0,0.00025,120]
[338394550,1726581891522,500.29797112,0.00025,120]
[338394551,1726581892917,500.0,0.00025,120]
[338394552,1726581893316,565.9298698,0.00025,120]
[338394553,1726581893390,1207.8,0.00025,120]
[338394554,1726581893940,562.4,0.00025,120]
[338394555,1726581894219,500.0,0.00025,120]
[338394556,1726581894971,2615.3,0.00025,120]
[338394557,1726581895759,922.94,0.00025,120]
[338394558,1726581896331,500.0,0.00025,120]
[338394559,1726581896632,2723.97,0.00025,120]
[338394560,1726581897285,2873.51,0.00025,120]
[338394561,1726581897793,500.0,0.00025,120]
[338394562,1726581898487,522.49,0.00025,120]
[338394563,1726581898990,500.0,0.00025,120]
[338394564,1726581899575,500.0,0.00025,120]
[338394565,1726581902049,500.0,0.00025,120]
[338394566,1726581902134,500.0,0.00025,120]
[338394567,1726581902898,500.0,0.00025,120]
[338394568,1726581903017,1174.02,0.00025,120]
[338394570,1726581903904,500.0,0.00025,120]
[338394571,1726581905295,2132.47,0.00025,120]
[338394572,1726581905679,500.75042184,0.00025,120]
[338394573,1726581907967,833.35,0.00025,120]
[338394574,1726581909624,500.0,0.00025,120]
[338394575,1726581910986,500.0,0.00025,120]
[338394576,1726581911196,500.0,0.00025,120]
[338394577,1726581912819,500.0,0.00025,120]
[338394578,1726581914055,500.0,0.00025,120]
[338394579,1726581914113,716.31,0.00025,120]
[338394581,1726581914807,567.53857787,0.00025,120]
[338394582,1726581915050,2759.16,0.00025,120]
[338394583,1726581915689,500.0,0.00025,120]
[338394584,1726581916039,500.0,0.00025,120]
[338394585,1726581916211,619.92,0.00025,120]
[338394586,1726581917242,3717.56,0.00025,120]
[338394587,1726581917699,1114.32,0.00025,120]
[338394588,1726581918052,500.0,0.00025,120]
[338394589,1726581918423,1683.51,0.00025,120]
[338394590,1726581918484,1013.59,0.00025,120]
[338394591,1726581923239,5738.04,0.00025,120]
[338394592,1726581923350,500.0,0.00025,120]
[338394593,1726581924031,1648.6,0.00025,120]
[338394594,1726581925614,500.0,0.00025,120]
[338394595,1726581925737,1109.23,0.00025,120]
[338394596,1726581926353,609.7,0.00025,120]
[338394597,1726581926535,500.0,0.00025,120]
[338394598,1726581926648,500.0,0.00025,120]
[338394599,1726581927526,500.0,0.00025,120]
[338394600,1726581927605,869.3,0.00025,120]
[338394601,1726581928249,2331.65,0.00025,120]
[338394602,1726581929071,500.0,0.00025,120]
[338394603,1726581932220,1469.05,0.00025,120]
[338394604,1726581932294,500.05,0.00025,120]
[338394605,1726581933292,500.0,0.00025,120]
[338394606,1726581933893,500.0,0.00025,120]
[338394607,1726581935275,1673.5,0.00025,120]
[338394608,1726581936003,849.23,0.00025,120]
[338394609,1726581936164,500.0,0.00025,120]
[338394610,1726581938267,1612.58,0.00025,120]
[338394611,1726581940678,656.46,0.00025,120]
[338394612,1726581941318,500.0,0.00025,120]
[338394613,1726581941840,500.0,0.00025,120]
[338394614,1726581943383,500.0,0.00025,120]
[338394615,1726581943931,500.0,0.00025,120]
[338394616,1726581945433,500.0,0.00025,120]
[338394617,1726581945918,500.63439399,0.00025,120]
[338394618,1726581946016,500.0,0.00025,120]
[338394619,1726581946087,500.0,0.00025,120]
[338394620,1726581946783,500.0,0.00025,120]
[338394621,1726581947949,1104.33,0.00025,120]
[338394622,1726581948586,567.08,0.00025,120]
[338394623,1726581948973,500.0,0.00025,120]
[338394624,1726581949826,2229.88,0.00025,120]
[338394625,1726581949956,817.36,0.00025,120]
[338394626,1726581950383,876.7,0.00025,120]
[338394627,1726581951625,154.26538698,0.00025,120]
[338394628,1726581952341,500.0,0.00025,120]
[338394629,1726581953920,500.0,0.00025,120]
[338394630,1726581955134,500.0,0.00025,120]
[338394631,1726581955437,500.0,0.00025,120]
[338394632,1726581955607,829.49,0.00025,120]
[338394633,1726581958266,500.0,0.00025,120]
[338394634,1726581958565,508.24782512,0.00025,120]
[338394635,1726581958627,1193.49,0.00025,120]
[338394636,1726581958955,500.0,0.00025,120]
[338394637,1726581959312,500.0,0.00025,120]
[338394638,1726581959895,2079.97,0.00025,120]
[338394639,1726581960568,500.0,0.00025,120]
[338394640,1726581961625,1511.09,0.00025,120]
[338394641,1726581964316,500.0,0.00025,120]
[338394642,1726581964669,1163.03,0.00025,120]
[338394643,1726581965876,437.2007247,0.00025,120]
[338394644,1726581965960,2350.03,0.00025,120]
[338394645,1726581966307,500.0,0.00025,120]
[338394646,1726581967011,500.0,0.00025,120]
[338394647,1726581968456,1276.01,0.00025,120]
[338394648,1726581969043,500.0,0.00025,120]
[338394649,1726581970996,500.0,0.00025,120]
[338394651,1726581973439,1493.51,0.00025,120]
[338394652,1726581974268,801.95,0.00025,120]
[338394653,1726581974583,736.98,0.00025,120]
[338394654,1726581975173,500.0,0.00025,120]
[338394655,1726581975856,500.0,0.00025,120]
[338394656,1726581976064,853.44,0.00025,120]
[338394657,1726581976370,500.0,0.00025,120]
[338394658,1726581976849,9256.11,0.00025,120]
[338394659,1726581977026,500.0,0.00025,120]
[338394660,1726581977084,500.0,0.00025,120]
[338394661,1726581977215,500.0,0.00025,120]
[338394662,1726581977540,592.41,0.00025,120]
[338394663,1726581978016,649.23,0.00025,120]
[338394664,1726581979716,500.0,0.00025,120]
[338394665,1726581980058,500.0,0.00025,120]
[338394666,1726581980303,547.09,0.00025,120]
[338394667,1726581980615,881.5,0.00025,120]
[338394669,1726581983185,573.93,0.00025,120]
[338394670,1726581984541,500.82107924,0.00025,120]
[338394671,1726581985449,500.0,0.00025,120]
[338394672,1726581987209,500.0,0.00025,120]
[338394673,1726581987409,500.0,0.00025,120]
[338394674,1726581988288,500.0,0.00025,120]
[338394675,1726581988344,3661.08,0.00025,120]
[338394676,1726581988657,580.87,0.00025,120]
[338394677,1726581989660,500.0,0.00025,120]
[338394678,1726581990665,500.0,0.00025,120]
[338394679,1726581991199,500.0,0.00025,120]
[338394680,1726581992335,500.0,0.00025,120]
[338394681,1726581993374,500.0,0.00025,120]
[338394682,1726581993818,500.0,0.00025,120]
[338394684,1726581994477,500.0,0.00025,120]
[338394685,1726581995600,500.0,0.00025,120]
[338394686,1726581996259,500.0,0.00025,120]
[338394687,1726581997781,501.39098781,0.00025,120]
[338394688,1726581997898,500.0,0.00025,120]
[338394689,1726581998139,500.0,0.00025,120]
[338394690,1726581998608,1742.88,0.00025,120]
[338394691,1726582000461,1156.66,0.00025,120]
[338394692,1726582001050,500.0,0.00025,120]
[338394693,1726582001941,500.0,0.00025,120]
[338394694,1726582002853,500.0,0.00025,120]
[338394695,1726582003477,500.0,0.00025,120]
[338394696,1726582003540,965.99,0.00025,120]
[338394697,1726582004218,1570.97,0.00025,120]
[338394698,1726582004533,500.0,0.00025,120]
[338394699,1726582004957,1923.7,0.00025,120]
[338394700,1726582005322,500.0,0.00025,120]
[338394701,1726582006400,500.0,0.00025,120]
[338394702,1726582006951,500.0,0.00025,120]
[338394703,1726582007175,720.25,0.00025,120]
[338394704,1726582007459,520.06842918,0.00025,120]
[338394705,1726582009722,500.0,0.00025,120]
[338394706,1726582009940,500.0,0.00025,120]
[338394707,1726582011330,675.25,0.00025,120]
[338394708,1726582012533,1369.6,0.00025,120]
[338394709,1726582014061,501.1303324,0.00025,120]
[338394710,1726582015117,500.0,0.00025,120]
[338394711,1726582015337,939.31,0.00025,120]
[338394713,1726582018478,764.78,0.00025,120]
[338394714,1726582018529,2764.16,0.00025,120]
[338394715,1726582022470,1076.77,0.00025,120]
[338394716,1726582023349,749.44,0.00025,120]
[338394717,1726582023470,500.0,0.00025,120]
[338394718,1726582023809,500.0,0.00025,120]
[338394719,1726582024787,500.0,0.00025,120]
[338394720,1726582025728,567.57307855,0.00025,120]
[338394721,1726582025843,500.0,0.00025,120]
[338394722,1726582026958,500.0,0.00025,120]
[338394723,1726582027423,500.0,0.00025,120]
[338394724,1726582027475,557.62,0.00025,120]
[338394725,1726582027554,500.0,0.00025,120]
[338394726,1726582030513,500.0,0.00025,120]
[338394727,1726582031909,500.0,0.00025,120]
[338394728,1726582032007,500.0,0.00025,120]
[338394729,1726582032906,631.61376767,0.00025,120]
[338394730,1726582033242,500.0,0.00025,120]
[338394731,1726582033497,1110.86,0.00025,120]
[338394732,1726582034145,698.41,0.00025,120]
[338394733,1726582034243,500.0,0.00025,120]
[338394734,1726582034809,500.0,0.00025,120]
[338394735,1726582034881,6581.64,0.00025,120]
[338394736,1726582034957,500.0,0.00025,120]
[338394737,1726582035736,500.0,0.00025,120]
[338394738,1726582035889,435.35225316,0.00025,120]
[338394739,1726582036149,500.0,0.00025,120]
[338394740,1726582036282,-300.0,0.00017162,2]
[338394741,1726582036304,-300.0,0.00017162,2]
[338394742,1726582036326,-313.87223894,0.00017163,2]
[338394743,1726582036655,500.0,0.00025,120]
[338394744,1726582037235,500.0,0.00025,120]
[338394745,1726582038141,2797.83,0.00025,120]
[338394746,1726582039511,2783.71,0.00025,120]
[338394747,1726582039769,500.0,0.00025,120]
[338394748,1726582041773,567.03448041,0.00025,120]
[338394749,1726582043117,991.05,0.00025,120]
[338394750,1726582043176,11510.56,0.00025,120]
[338394751,1726582043536,727.97,0.00025,120]
[338394752,1726582043751,1045.5,0.00025,120]